bitfinex-derivatives/quotes_ETHF0:USTF0_20260303
["timestamp","ask_amount","ask_price","bid_price","bid_amount"]
[1772497096455,0.38872648,2027.3,2026.0,0.55355797]
[1772497096456,0.38872648,2027.1,2026.0,0.55355797]
[1772497096661,0.38872648,2026.9,2026.2,0.55355797]
[1772497096957,0.88000984,2026.9,2026.2,0.55355797]
[1772497097160,0.38872648,2026.8,2026.2,0.55355797]
[1772497097361,11.19478678,2027.0,2026.4,0.57639418]
[1772497097566,7.09492372,2027.0,2026.4,0.57639418]
[1772497097758,6.459,2027.0,2026.6,0.57673409]
[1772497098260,6.84855662,2027.0,2026.6,0.57673409]
[1772497098861,6.84903161,2027.0,2026.6,0.57673409]
[1772497099062,6.459,2027.0,2026.7,2.13827192]
[1772497099262,6.459,2027.0,2026.5,0.59437136]
[1772497099465,10.55886306,2027.0,2026.5,0.59437136]
[1772497099964,6.459,2027.0,2026.5,0.59437136]
[1772497100160,4.34654306,2027.1,2026.5,0.59437136]
[1772497100161,11.00989167,2026.9,2026.5,0.59437136]
[1772497100362,2.76664268,2026.8,2026.7,0.59484533]
[1772497100665,7.04906936,2027.1,2026.7,0.59484533]
[1772497100862,6.459,2027.3,2026.9,0.57673409]
[1772497101260,6.459,2027.3,2027.0,2.13827192]
[1772497101465,6.459,2027.3,2027.0,2.71500601]
[1772497101664,7.04906936,2027.3,2027.0,2.71500601]
[1772497102062,0.59006936,2027.2,2027.0,1.61088192]
[1772497102263,0.59006936,2027.2,2026.5,0.57673409]
[1772497103667,0.59006936,2027.4,2026.7,0.57673409]
[1772497103871,7.04906936,2027.4,2026.7,0.57673409]
[1772497104467,0.59006936,2027.0,2026.2,0.5821155]
[1772497104771,0.59006936,2026.8,2026.2,0.5821155]
[1772497105870,7.29573936,2027.1,2026.2,0.5821155]
[1772497106374,6.459,2027.1,2026.2,0.5821155]
[1772497106571,7.04906936,2027.3,2026.2,0.5821155]
[1772497106769,6.459,2027.3,2026.3,0.57673409]
[1772497107168,11.14893242,2027.5,2026.3,0.57673409]
[1772497107664,0.59006936,2027.6,2026.3,0.57673409]
[1772497108462,0.25277809,2027.7,2026.3,0.57673409]
[1772497108463,0.59006936,2027.4,2026.3,0.57673409]
[1772497109372,0.59006936,2027.2,2026.3,0.57673409]
[1772497109976,0.59006936,2027.0,2026.3,0.57673409]
[1772497111576,0.24665,2027.3,2026.3,0.57673409]
[1772497111971,0.83671936,2027.3,2026.3,0.57673409]
[1772497112472,6.75898552,2027.2,2026.3,0.57673409]
[1772497112676,7.04906936,2027.4,2026.3,0.57673409]
[1772497112873,6.75898091,2027.3,2026.3,0.57673409]
[1772497113174,0.59006936,2027.6,2026.3,0.57673409]
[1772497113976,0.00616809,2027.7,2026.3,0.57673409]
[1772497114181,0.00616809,2027.7,2026.5,0.57673409]
[1772497114879,0.59623745,2027.7,2026.5,0.57673409]
[1772497115880,6.459,2028.1,2026.4,0.24676]
[1772497115881,0.59006936,2028.0,2026.7,0.57673409]
[1772497116184,0.59006936,2028.0,2026.9,0.57673409]
[1772497116981,0.59403099,2028.0,2026.9,0.57673409]
[1772497117182,0.00396163,2028.0,2026.9,0.57673409]
[1772497117490,0.59403099,2028.0,2026.9,0.57673409]
[1772497118178,0.00396163,2028.0,2026.9,0.57673409]
[1772497118385,0.59006936,2028.2,2026.9,0.57673409]
[1772497119284,0.59476458,2028.2,2026.9,0.57673409]
[1772497120784,0.00469522,2028.2,2027.1,0.57673409]
[1772497122084,0.00469522,2028.2,2027.3,0.57673409]
[1772497122289,0.59476458,2028.2,2027.5,0.57673409]
[1772497124687,0.00469522,2028.2,2027.5,0.57673409]
[1772497125090,0.59476458,2028.2,2027.6,0.57673409]
[1772497126183,7.17969758,2028.8,2027.8,0.57673409]
[1772497126387,0.59006936,2028.8,2027.8,0.57673409]
[1772497127191,0.59455429,2028.8,2027.8,0.58026886]
[1772497128089,0.59455429,2028.8,2027.8,7.04026886]
[1772497128390,0.59455429,2028.8,2027.9,1.15543406]
[1772497128690,0.59455429,2028.8,2027.8,7.61896883]
[1772497129593,0.59455429,2028.8,2027.9,1.15543406]
[1772497130491,0.00448493,2028.8,2027.9,1.15543406]
[1772497130787,1.1500897,2028.8,2027.9,1.15543406]
[1772497132292,1.1500897,2028.8,2028.0,1.15543406]
[1772497132595,0.00448493,2028.8,2028.0,1.15543406]
[1772497132793,1.1500897,2028.8,2028.0,1.15543406]
[1772497135491,1.1500897,2028.8,2028.1,1.15543406]
[1772497138490,1.1500897,2028.8,2027.9,1.15543406]
[1772497140999,1.14560477,2028.6,2027.8,0.00353477]
[1772497141197,1.14560477,2028.6,2027.8,1.15896883]
[1772497142396,1.14560477,2028.4,2027.5,1.15543406]
[1772497142600,1.14560477,2028.2,2027.3,1.15543406]
[1772497142802,1.14560477,2028.2,2027.0,1.15543406]
[1772497143099,1.14560477,2028.0,2027.0,1.15543406]
[1772497143491,1.14560477,2028.0,2027.0,1.1591256]
[1772497144199,1.14560477,2027.9,2027.0,1.1591256]
[1772497144501,2.04524951,2028.0,2026.5,1.15543406]
[1772497144502,1.14560477,2027.6,2026.5,1.15543406]
[1772497145493,1.14560477,2027.6,2026.5,1.1593169]
[1772497146101,1.14560477,2027.6,2026.7,1.15543406]
[1772497147703,1.14560477,2027.6,2026.5,1.1593169]
[1772497150613,1.14560477,2027.4,2026.5,1.1593169]
[1772497151612,1.14560477,2027.2,2026.1,1.15543406]
[1772497152512,1.15134816,2027.2,2026.1,1.16164331]
[1772497153208,1.14560477,2027.1,2026.1,1.16164331]
[1772497153413,1.14560477,2026.7,2025.7,1.15543406]
[1772497154509,1.14560477,2026.7,2025.7,1.16133281]
[1772497155513,1.14560477,2026.3,2024.7,0.2]
[1772497155712,1.14560477,2026.3,2024.9,1.15543406]
[1772497155713,1.14560477,2026.0,2024.9,1.15543406]
[1772497156511,1.14560477,2026.0,2024.9,1.15946989]
[1772497156707,1.14560477,2025.7,2024.9,0.00403583]
[1772497156916,1.1490645,2025.7,2024.9,0.00403583]
[1772497157513,1.40127963,2024.9,2023.4,0.2]
[1772497157719,2.04524951,2024.5,2023.6,1.35654587]
[1772497157919,1.40127963,2024.5,2023.6,1.35654587]
[1772497158119,1.40127963,2024.9,2023.8,1.35654587]
[1772497158614,1.40127963,2024.9,2024.0,1.35654587]
[1772497159016,1.40127963,2024.9,2023.9,0.2]
[1772497159415,1.40127963,2024.9,2024.1,1.35654587]
[1772497159713,1.40127963,2025.1,2024.1,1.35654587]
[1772497159920,1.40127963,2025.6,2024.2,1.55654587]
[1772497160610,1.40127963,2025.6,2024.3,1.35654587]
[1772497161008,1.40127963,2025.6,2024.2,6.66]
[1772497161009,1.40127963,2025.6,2024.5,1.35654587]
[1772497161410,1.40127963,2025.6,2024.7,1.35654587]
[1772497161814,1.40127963,2025.6,2024.9,1.35654587]
[1772497162519,1.40127963,2025.6,2025.1,1.35654587]
[1772497163117,1.40127963,2025.6,2025.1,1.95654587]
[1772497164325,1.40127963,2025.6,2025.2,1.55654587]
[1772497164513,1.40127963,2025.6,2024.8,1.35654587]
[1772497164823,1.40127963,2025.1,2024.2,1.35654587]
[1772497167717,1.40127963,2025.3,2024.4,1.35654587]
[1772497168117,1.40127963,2025.6,2024.8,1.95654587]
[1772497168321,1.40127963,2025.6,2024.8,1.35654587]
[1772497169324,1.40127963,2025.6,2024.9,1.35654587]
[1772497169823,1.40127963,2025.6,2025.0,1.35654587]
[1772497170324,1.40127963,2025.6,2025.0,1.95654587]
[1772497170624,1.40127963,2025.6,2025.0,1.35654587]
[1772497170828,1.40127963,2025.6,2025.1,0.6]
[1772497171032,1.40473936,2025.7,2025.2,1.35654587]
[1772497171221,1.40473936,2025.7,2024.4,0.247]
[1772497171421,1.40473936,2025.7,2024.8,1.35654587]
[1772497171926,1.40473936,2025.7,2024.7,0.6]
[1772497171927,1.40473936,2025.7,2025.0,1.35654587]
[1772497172127,0.00345973,2025.7,2025.0,1.35654587]
[1772497172322,0.00345973,2025.7,2024.4,0.247]
[1772497172323,0.00345973,2025.7,2025.2,1.35654587]
[1772497172817,1.40473936,2025.7,2025.2,1.95654587]
[1772497173526,1.40473936,2025.7,2025.3,1.35654587]
[1772497173726,1.40473936,2025.7,2025.3,1.36279297]
[1772497174422,0.00345973,2025.7,2025.3,1.36279297]
[1772497174626,1.40473936,2025.7,2025.3,1.96279297]
[1772497175220,1.40127963,2026.2,2025.6,1.35654587]
[1772497175821,1.40127963,2026.4,2025.8,1.35654587]
[1772497176226,1.4049073,2026.4,2025.8,1.35654587]
[1772497176833,1.4049073,2026.4,2025.9,1.35654587]
[1772497177131,0.00362767,2026.4,2025.9,1.35654587]
[1772497177331,0.00362767,2026.4,2026.2,1.35654587]
[1772497177723,1.40127963,2026.7,2026.2,1.95654587]
[1772497177925,1.40127963,2026.9,2026.2,1.35654587]
[1772497178126,7.17451912,2026.8,2026.2,1.35654587]
[1772497178328,7.17451912,2026.8,2026.3,1.35654587]
[1772497178632,1.40127963,2027.2,2026.3,1.35654587]
[1772497178833,1.40473948,2027.2,2026.5,1.35654587]
[1772497179435,1.40473948,2027.2,2026.6,1.35654587]
[1772497179835,1.40473948,2027.2,2026.7,1.35654587]
[1772497180032,0.00345985,2027.2,2026.7,1.35654587]
[1772497180538,0.00345985,2027.2,2026.9,1.35654587]
[1772497180835,0.00345985,2027.2,2026.9,1.36145296]
[1772497181435,0.00345985,2027.2,2027.1,0.6]
[1772497181734,1.38291112,2027.2,2026.6,1.35654587]
[1772497182738,1.38291112,2027.2,2026.6,1.36213837]
[1772497183538,0.00345985,2027.2,2026.6,1.36213837]
[1772497184335,1.08953598,2027.2,2026.6,1.36213837]
[1772497186530,0.99037711,2027.0,2026.0,1.35654587]
[1772497186735,0.24667,2027.1,2026.0,1.35654587]
[1772497186736,0.99037711,2026.8,2026.0,1.35654587]
[1772497187640,0.99037711,2026.8,2026.0,1.36235473]
[1772497188140,0.99037711,2026.8,2026.0,0.00580886]
[1772497188841,0.84454005,2026.6,2025.6,0.96095049]
[1772497189840,0.81115,2026.7,2025.6,0.96095049]
[1772497190042,0.81115,2026.7,2025.6,0.96523688]
[1772497190640,0.79237821,2026.5,2025.6,0.96523688]
[1772497191041,4.81934747,2026.7,2025.6,0.96523688]
[1772497191244,7.26339847,2026.6,2025.6,0.96523688]
[1772497191438,8.0225995,2026.6,2025.6,0.96523688]
[1772497191742,8.02332107,2026.5,2025.6,0.96523688]
[1772497191945,4.05899364,2026.8,2025.6,0.96523688]
[1772497191946,7.99184293,2026.4,2025.6,0.96523688]
[1772497192247,0.72747164,2026.4,2025.6,0.96523688]
[1772497195147,0.72747164,2026.4,2025.6,0.00428639]
[1772497195344,0.62637606,2026.2,2024.8,0.96095049]
[1772497195540,6.70777,2026.3,2024.8,0.96095049]
[1772497195541,0.62533972,2026.1,2024.8,0.96095049]
[1772497196254,0.62533972,2026.1,2024.8,0.96516482]
[1772497196641,0.56144861,2025.9,2024.8,0.96516482]
[1772497196844,0.56144861,2025.8,2024.8,0.96516482]
[1772497197045,0.56144861,2025.6,2024.8,0.96516482]
[1772497197246,0.56144861,2025.5,2024.8,0.96516482]
[1772497200750,7.27743172,2025.6,2024.8,0.96516482]
[1772497200953,0.00580185,2025.6,2024.8,0.96516482]
[1772497201250,4.50564765,2026.2,2024.8,0.96516482]
[1772497201650,7.27829649,2026.1,2024.8,0.96516482]
[1772497201853,0.44665401,2026.2,2024.8,0.96516482]
[1772497201854,7.27829649,2026.0,2024.8,0.96516482]
[1772497202051,0.00372336,2026.0,2024.9,0.96095049]
[1772497204054,0.00372336,2026.0,2025.0,0.96095049]
[1772497205156,7.28129503,2026.3,2025.2,0.96095049]
[1772497205356,0.34901632,2026.4,2025.2,0.96095049]
[1772497206053,0.32135992,2026.1,2025.2,0.96095049]
[1772497206260,0.32637071,2026.1,2025.2,0.96095049]
[1772497208954,0.00501079,2026.1,2025.2,0.96095049]
[1772497209357,0.24252624,2026.1,2025.2,0.96095049]
[1772497210861,0.19022349,2026.4,2025.2,0.96095049]
[1772497211053,0.19022349,2026.3,2025.2,0.96095049]
[1772497211753,0.00394331,2026.3,2025.2,0.96095049]
[1772497212358,0.166712,2026.3,2025.2,0.96095049]
[1772497212659,0.16270208,2026.2,2025.2,0.96095049]
[1772497213555,0.13512981,2026.0,2025.2,0.96095049]
[1772497216461,4.19412345,2026.0,2025.2,0.96095049]
[1772497218270,7.28710088,2025.9,2025.2,0.96095049]
[1772497218470,7.28710088,2025.8,2025.2,0.96095049]
[1772497218774,0.00394331,2026.3,2025.4,0.54444676]
[1772497224168,0.55963027,2026.7,2025.6,0.54444676]
[1772497224367,7.86193977,2026.7,2025.6,0.54444676]
[1772497224563,7.3023095,2026.6,2025.6,0.54444676]
[1772497224774,7.3023095,2026.5,2025.6,0.54444676]
[1772497224973,0.55963027,2026.7,2025.6,0.54444676]
[1772497225174,0.56318352,2026.7,2025.6,0.54444676]
[1772497226476,7.86474428,2026.7,2025.6,0.54444676]
[1772497226678,7.30156076,2026.6,2025.6,0.54444676]
[1772497226976,0.56318352,2026.7,2025.6,0.54444676]
[1772497227276,0.56318352,2026.7,2025.7,0.54444676]
[1772497228177,0.55963027,2026.6,2025.7,0.54444676]
[1772497228378,0.55963027,2026.5,2025.7,0.54444676]
[1772497229175,7.85679904,2026.5,2025.7,0.54444676]
[1772497229375,0.55963027,2026.5,2025.7,0.54444676]
[1772497230176,7.86419492,2026.5,2025.7,0.54444676]
[1772497230376,0.55963027,2026.5,2025.7,0.54444676]
[1772497232081,0.56318352,2026.7,2025.7,0.54444676]
[1772497232581,0.56318352,2026.7,2025.8,0.54444676]
[1772497232985,0.55963027,2026.6,2025.8,0.54444676]
[1772497233280,7.86550892,2026.6,2025.8,0.54444676]
[1772497233481,7.86550892,2026.5,2025.8,0.54444676]
[1772497233683,0.55963027,2026.5,2025.8,0.54444676]
[1772497234279,0.56318352,2026.7,2025.8,0.54444676]
[1772497234783,0.00355325,2026.7,2025.8,0.54444676]
[1772497234982,7.31039786,2026.7,2025.8,0.54444676]
[1772497235276,0.00355325,2026.7,2025.8,0.54444676]
[1772497235482,0.00355325,2026.7,2026.0,0.54444676]
[1772497238979,7.30743975,2027.0,2026.0,0.54444676]
[1772497239184,0.55963027,2027.0,2026.0,0.54444676]
[1772497239883,0.56403946,2027.0,2026.2,0.54444676]
[1772497242683,0.55963027,2026.8,2025.9,0.54444676]
[1772497242884,7.30521686,2026.8,2025.9,0.54444676]
[1772497243078,0.55963027,2026.8,2025.9,0.54444676]
[1772497243281,7.85277596,2026.8,2025.9,0.54444676]
[1772497244183,0.56403946,2027.0,2025.9,0.54444676]
[1772497244486,0.00440919,2027.0,2025.9,0.54444676]
[1772497244988,0.56403946,2027.0,2025.9,0.54444676]
[1772497245584,0.56403946,2027.0,2026.1,0.54444676]
[1772497245890,0.55963027,2026.9,2026.1,0.54444676]
[1772497246781,0.55963027,2026.7,2025.9,0.54444676]
[1772497247087,0.55963027,2026.6,2025.9,0.54444676]
[1772497247288,7.29709262,2026.7,2025.9,0.54444676]
[1772497247480,7.85672289,2026.7,2025.9,0.54444676]
[1772497247683,0.54659348,2026.6,2025.9,0.54444676]
[1772497251593,0.54659348,2026.6,2025.7,0.56308854]
[1772497251889,0.54659348,2026.5,2025.7,0.56308854]
[1772497252090,0.54659348,2026.4,2025.7,0.56308854]
[1772497252891,7.8436861,2026.5,2025.7,0.56308854]
[1772497253088,7.29709262,2026.4,2025.7,0.56308854]
[1772497253283,7.29709262,2026.3,2025.7,0.56308854]
[1772497253490,7.31084761,2026.2,2025.7,0.56308854]
[1772497253688,0.54659348,2026.3,2025.7,0.56308854]
[1772497254588,7.85793244,2026.3,2025.7,0.56308854]
[1772497254797,0.54659348,2026.3,2025.7,0.56308854]
[1772497256294,0.54659348,2026.2,2025.7,0.56308854]
[1772497257688,0.54659348,2026.4,2025.7,0.56308854]
[1772497257890,0.54659348,2026.3,2025.1,0.56308854]
[1772497258094,0.54659348,2026.1,2025.1,0.56308854]
[1772497258289,0.54659348,2026.0,2025.1,0.56308854]
[1772497264698,0.79337348,2026.2,2025.1,0.56308854]
[1772497264898,0.54659348,2026.1,2025.1,0.56308854]
[1772497265299,0.54659348,2026.3,2025.1,0.56308854]
[1772497266399,0.54659348,2026.3,2025.3,0.56308854]
[1772497266593,0.54659348,2026.2,2025.3,0.56308854]
[1772497266791,0.54659348,2026.1,2025.3,0.56308854]
[1772497267498,0.54659348,2026.1,2024.8,0.00421433]
[1772497267699,0.54659348,2025.8,2024.9,0.56308854]
[1772497267994,0.54659348,2025.8,2024.8,0.00421433]
[1772497267995,0.54659348,2025.5,2024.8,0.00421433]
[1772497268198,0.54659348,2025.4,2024.5,0.56308854]
[1772497269102,0.54659348,2025.4,2024.5,0.56757846]
[1772497270400,0.54659348,2025.2,2024.5,0.00448992]
[1772497270600,0.54659348,2025.1,2024.5,1e-08]
[1772497270797,0.54659348,2025.1,2023.9,6.463]
[1772497270798,0.54659348,2024.9,2023.9,0.56308854]
[1772497271003,0.54659348,2024.7,2023.9,0.56308854]
[1772497271305,0.54659348,2024.6,2023.9,0.56308854]
[1772497272001,0.54659348,2024.9,2023.9,0.56925388]
[1772497272298,0.54659348,2025.1,2023.9,0.56925388]
[1772497272605,0.54659348,2025.3,2023.9,0.56925388]
[1772497274107,0.54659348,2025.3,2024.1,0.56308854]
[1772497274306,0.55183156,2025.5,2024.1,0.56308854]
[1772497275002,0.55183156,2025.5,2024.3,0.56308854]
[1772497275209,0.55183156,2025.5,2024.4,0.56308854]
[1772497278608,0.00523808,2025.5,2024.4,0.56308854]
[1772497278810,0.56164223,2025.5,2024.4,0.56308854]
[1772497279105,0.56164223,2025.5,2024.6,0.56696085]
[1772497279608,0.56164223,2025.5,2024.7,0.56696085]
[1772497281308,0.56164223,2025.5,2024.3,0.56696085]
[1772497281309,0.55640415,2025.4,2024.3,0.56696085]
[1772497281514,0.55640415,2025.2,2024.3,0.56696085]
[1772497281710,0.55640415,2025.1,2024.3,0.56696085]
[1772497284515,5.92384832,2025.2,2024.3,0.56696085]
[1772497284718,0.56164223,2025.5,2024.5,0.56696085]
[1772497285121,0.00523808,2025.5,2024.5,0.56696085]
[1772497285415,0.55640415,2025.9,2024.7,0.56696085]
[1772497285617,0.55640415,2025.9,2024.9,0.56696085]
[1772497286412,0.56113714,2025.9,2024.9,0.56696085]
[1772497289221,4.65064667,2025.6,2024.2,0.56696085]
[1772497289422,0.55640415,2025.5,2024.2,0.56696085]
[1772497290330,4.65064667,2025.5,2024.2,0.56696085]
[1772497290530,0.55640415,2025.4,2024.2,0.56696085]
[1772497290823,4.65064667,2025.4,2024.2,0.56696085]
[1772497291030,0.55640415,2025.2,2024.2,0.56696085]
[1772497295735,4.09424252,2025.5,2024.2,0.56696085]
[1772497295934,0.55640415,2025.4,2024.2,0.56696085]
[1772497299234,0.55640415,2025.6,2024.4,0.56696085]
[1772497299638,0.55640415,2025.5,2024.4,0.56696085]
[1772497300236,7.21248874,2025.6,2024.6,0.56696085]
[1772497300437,0.55640415,2025.7,2024.6,0.56696085]
[1772497300836,0.56113714,2025.9,2024.8,0.56696085]
[1772497301641,7.77521684,2025.9,2024.8,0.56696085]
[1772497301841,0.56113714,2025.9,2024.8,0.56696085]
[1772497303338,0.56113714,2025.9,2024.9,0.56696085]
[1772497307037,0.55640415,2025.8,2024.9,0.56696085]
[1772497309441,0.00473299,2025.9,2024.9,0.56696085]
[1772497309646,0.54884401,2025.9,2024.9,0.56696085]
[1772497310544,0.54884401,2025.9,2025.0,0.55743086]
[1772497311142,0.54884401,2025.9,2024.7,0.55743086]
[1772497312547,6.464,2025.8,2024.7,0.55743086]
[1772497312745,0.54411102,2025.7,2024.7,0.55743086]
[1772497314354,0.54884401,2025.9,2024.9,0.55743086]
[1772497316056,0.54884401,2025.9,2025.1,0.55743086]
[1772497316453,0.00473299,2025.9,2025.1,0.55743086]
[1772497317152,0.54411102,2026.1,2025.3,0.55743086]
[1772497318256,0.54931193,2026.1,2024.9,0.55743086]
[1772497319158,0.54411102,2026.0,2024.9,0.55743086]
[1772497319861,0.54411102,2026.0,2025.1,0.55743086]
[1772497321661,0.54931193,2026.1,2025.3,0.55743086]
[1772497323055,0.54931193,2026.1,2025.1,0.55743086]
[1772497324457,0.54411102,2026.0,2025.1,0.55743086]
[1772497325355,0.00520091,2026.1,2025.1,0.55743086]
[1772497326359,0.00520091,2026.1,2025.3,0.55743086]
[1772497327957,0.00520091,2026.1,2025.5,0.55743086]
[1772497328157,0.00520091,2026.1,2025.5,0.56161609]
[1772497329365,0.54411102,2026.5,2025.5,0.56161609]
[1772497329562,0.54411102,2026.4,2025.5,0.56161609]
[1772497330364,0.54760059,2026.4,2025.5,0.56161609]
[1772497331068,0.54411102,2026.3,2025.5,0.56161609]
[1772497331564,0.54411102,2026.3,2025.1,7.02143086]
[1772497331865,0.54411102,2026.2,2025.2,0.55743086]
[1772497332567,0.54411102,2026.2,2025.2,0.56134887]
[1772497334169,0.54411102,2026.1,2025.2,0.56134887]
[1772497335668,0.54411102,2025.9,2024.8,0.55743086]
[1772497336671,0.54411102,2025.9,2024.8,0.56299333]
[1772497337570,0.54411102,2025.9,2024.9,0.58767267]
[1772497339071,0.58141582,2025.8,2024.9,0.58767267]
[1772497341472,0.58141582,2025.6,2024.8,0.00556247]
[1772497341676,0.58141582,2025.5,2024.8,0.00556247]
[1772497342376,0.58141582,2025.5,2024.4,0.58767267]
[1772497343271,0.58141582,2025.5,2024.4,0.59211082]
[1772497344975,0.58141582,2025.4,2024.4,0.59211082]
[1772497350978,0.58141582,2025.4,2023.7,6.07837]
[1772497350979,0.58141582,2025.2,2023.7,0.58767267]
[1772497351179,0.58141582,2025.0,2023.7,0.58767267]
[1772497351379,0.58141582,2024.9,2023.7,0.58767267]
[1772497351779,0.58141582,2024.9,2023.9,0.58767267]
[1772497351980,0.58664555,2024.9,2023.9,0.59156541]
[1772497352178,0.58664555,2024.9,2024.0,0.58767267]
[1772497353180,0.00522973,2024.9,2024.2,0.58767267]
[1772497356382,4.0962796,2025.9,2024.4,0.58767267]
[1772497356383,0.58141582,2025.6,2024.4,0.58767267]
[1772497356586,0.58141582,2025.5,2024.4,0.58767267]
[1772497357186,0.58141582,2025.4,2024.2,0.58767267]
[1772497357374,0.58618319,2025.4,2024.2,0.58767267]
[1772497361701,0.58618319,2025.4,2024.3,0.58767267]
[1772497363304,0.58618319,2025.4,2024.4,0.58767267]
[1772497367210,0.58618319,2025.4,2024.1,0.58767267]
[1772497367403,0.58141582,2025.3,2024.1,0.58767267]
[1772497368103,6.465,2025.2,2024.1,0.58767267]
[1772497368300,0.56847989,2025.0,2024.1,0.58767267]
[1772497368904,0.56847989,2024.7,2023.9,0.57667021]
[1772497369100,0.56847989,2024.6,2023.9,0.57667021]
[1772497369306,0.56847989,2024.6,2023.9,0.00389274]
[1772497369507,0.56847989,2024.5,2023.9,0.00389274]
[1772497370304,0.56847989,2024.5,2023.6,0.57277747]
[1772497371516,0.56847989,2024.5,2023.6,0.57882116]
[1772497373014,0.56847989,2024.6,2023.6,0.57882116]
[1772497380522,0.56847989,2024.6,2023.6,0.00604369]
[1772497380822,0.56847989,2024.5,2023.4,0.2]
[1772497381018,0.56847989,2024.3,2023.4,0.2]
[1772497381218,0.56847989,2024.2,2023.4,0.2]
[1772497381822,0.56847989,2024.2,2023.4,0.20394963]
[1772497382422,0.56847989,2024.2,2023.4,0.7767271]
[1772497382717,0.56847989,2024.1,2023.4,0.7767271]
[1772497383522,0.55147989,2024.1,2023.4,0.7767271]
[1772497385024,0.55147989,2024.1,2023.4,0.20394963]
[1772497385420,5.49247989,2024.1,2023.3,0.2]
[1772497385625,0.56847989,2024.0,2023.1,0.2]
[1772497385825,0.56847989,2023.9,2023.1,0.2]
[1772497386421,0.56847989,2023.8,2023.1,0.00394924]
[1772497386624,0.56847989,2023.6,2023.0,0.2]
[1772497387522,0.56847989,2023.6,2023.1,0.57277747]
[1772497388523,0.56847989,2023.6,2023.0,0.20530681]
[1772497389126,0.56847989,2023.6,2023.1,0.57277747]
[1772497389625,0.56847989,2023.6,2023.0,0.77808428]
[1772497390620,0.56847989,2023.6,2022.8,0.57277747]
[1772497390820,0.56847989,2023.4,2022.3,0.77277747]
[1772497391023,0.56847989,2023.2,2022.5,0.57277747]
[1772497391229,0.56847989,2023.2,2022.6,0.57277747]
[1772497391425,7.12526701,2023.8,2022.6,0.57277747]
[1772497391426,0.56847989,2023.8,2022.6,0.57277747]
[1772497391631,0.56847989,2023.8,2023.0,0.57277747]
[1772497392131,0.56847989,2023.8,2023.1,0.57277747]
[1772497392728,0.56847989,2023.8,2023.4,0.57277747]
[1772497393032,0.56847989,2023.8,2023.1,0.57277747]
[1772497393729,0.56847989,2023.8,2023.2,0.77277747]
[1772497393934,0.56847989,2023.8,2023.2,0.57277747]
[1772497394133,0.56847989,2023.8,2023.3,0.77277747]
[1772497394336,0.56847989,2023.8,2023.3,0.57277747]
[1772497394635,0.56847989,2023.8,2023.3,0.77277747]
[1772497395042,0.56847989,2023.8,2023.4,0.57277747]
[1772497395437,0.56847989,2023.8,2022.9,0.57277747]
[1772497395737,0.56847989,2023.8,2023.2,0.57277747]
[1772497396134,0.56847989,2023.8,2023.4,0.57277747]
[1772497396637,0.56847989,2023.8,2023.4,0.77277747]
[1772497397029,0.56847989,2023.8,2023.5,0.57277747]
[1772497397234,0.57432841,2023.9,2023.5,0.57277747]
[1772497397433,0.00584852,2023.9,2023.5,0.57277747]
[1772497397831,0.55058218,2024.1,2023.8,0.57531813]
[1772497398031,0.56062859,2024.4,2023.8,0.57531813]
[1772497398531,0.56062859,2024.4,2023.3,2.29559813]
[1772497398532,0.56062859,2024.4,2024.0,0.57531813]
[1772497398937,0.5662292,2024.4,2023.6,0.57531813]
[1772497399235,0.5662292,2024.4,2023.8,0.57531813]
[1772497399736,0.5662292,2024.4,2024.0,0.57531813]
[1772497400836,0.5662292,2024.4,2023.4,0.57531813]
[1772497401535,0.5662292,2024.4,2023.6,0.57531813]
[1772497402040,0.5662292,2024.4,2023.8,0.57531813]
[1772497403032,0.00560061,2024.4,2023.8,0.57531813]
[1772497403434,0.00560061,2024.4,2023.3,0.24712]
[1772497403435,0.56062859,2024.6,2024.2,0.57531813]
[1772497403636,10.55382008,2025.1,2024.2,0.57531813]
[1772497403637,0.56062859,2024.8,2024.2,0.57531813]
[1772497403940,0.56062859,2025.1,2024.3,0.57531813]
[1772497404435,0.56639618,2025.1,2024.4,0.57531813]
[1772497404640,0.00576759,2025.1,2024.4,0.57531813]
[1772497404940,0.56062859,2025.5,2025.0,0.57531813]
[1772497405434,0.56062859,2025.5,2025.2,0.2]
[1772497405641,0.56062859,2025.9,2025.2,0.57531813]
[1772497405837,0.56495716,2025.9,2025.2,0.57531813]
[1772497406032,0.56495716,2025.9,2025.3,0.57531813]
[1772497407135,0.56495716,2025.9,2025.4,0.57531813]
[1772497407539,0.56495716,2025.9,2024.8,0.57531813]
[1772497407737,0.56495716,2025.9,2025.0,0.57531813]
[1772497408238,0.00432857,2025.9,2025.3,0.57531813]
[1772497408534,0.56062859,2026.1,2025.3,0.57531813]
[1772497408738,0.56062859,2026.6,2025.7,0.57531813]
[1772497409739,0.56418649,2026.6,2025.7,0.57531813]
[1772497410142,0.56418649,2026.6,2025.2,0.57531813]
[1772497410343,0.56062859,2026.5,2025.2,0.57531813]
[1772497411041,0.56062859,2026.5,2025.4,0.57531813]
[1772497412646,0.56062859,2026.5,2025.5,0.57531813]
[1772497413048,0.56062859,2026.5,2025.5,0.77531813]
[1772497413242,0.56062859,2026.5,2025.6,0.57531813]
[1772497415249,0.56062859,2026.5,2025.7,0.57531813]
[1772497415542,0.56062859,2026.5,2025.6,0.2]
[1772497415748,0.56062859,2026.5,2025.6,0.77531813]
[1772497416647,0.56062859,2026.5,2025.7,0.2]
[1772497417050,0.56062859,2026.5,2025.8,0.57531813]
[1772497417250,0.56062859,2026.5,2025.8,0.58071555]
[1772497417451,0.56062859,2026.5,2025.8,0.00539742]
[1772497417646,0.56062859,2026.5,2025.4,0.57531813]
[1772497418350,0.56062859,2026.5,2025.4,0.77531813]
[1772497418550,0.56062859,2026.5,2025.4,0.57531813]
[1772497418745,0.56062859,2026.5,2025.4,0.57906655]
[1772497419253,0.56062859,2026.5,2025.5,0.2]
[1772497419547,0.56062859,2026.5,2025.4,0.00374842]
[1772497421456,0.56062859,2026.3,2025.4,0.00374842]
[1772497421656,0.56062859,2026.1,2025.4,0.00374842]
[1772497422151,0.56062859,2025.9,2025.0,0.57531813]
[1772497422759,0.56062859,2025.9,2025.2,0.2]
[1772497422956,0.56062859,2025.9,2025.0,0.57531813]
[1772497423153,0.56062859,2025.9,2025.0,0.57946571]
[1772497423358,0.56062859,2025.9,2025.2,0.2]
[1772497423655,0.56062859,2025.7,2025.0,0.00414758]
[1772497423851,0.56062859,2025.6,2025.0,0.00414758]
[1772497424048,0.56062859,2025.6,2024.3,0.57531813]
[1772497424660,0.56062859,2025.4,2024.3,0.57531813]
[1772497425047,0.56062859,2025.4,2024.3,0.57917416]
[1772497425953,0.56062859,2025.6,2024.5,0.57531813]
[1772497426959,0.56062859,2025.9,2024.5,0.57531813]
[1772497427252,0.56062859,2025.8,2024.5,0.57531813]
[1772497429461,0.59263039,2025.7,2024.5,0.57531813]
[1772497433157,0.59263039,2025.6,2024.5,0.57531813]
[1772497435263,0.59263039,2025.5,2024.5,0.57531813]
[1772497436261,0.59263039,2025.4,2024.5,0.57531813]
[1772497437061,0.59263039,2025.3,2024.5,0.57531813]
[1772497438659,0.59263039,2025.3,2024.3,0.57568588]